Workbook

Sheet 目录
A1: 目录
A2: 附表3-1 | B2: 部门预算收支总表
A3: 附表3-2 | B3: 部门预算收入总表
A4: 附表3-3 | B4: 部门预算支出总表
A5: 附表3-4 | B5: 部门预算财政拨款收支总表
A6: 附表3-5 | B6: 部门预算一般公共预算财政拨款支出表
A7: 附表3-6 | B7: 部门预算一般公共预算财政拨款基本支出表
A8: 附表3-7 | B8: 部门预算政府性基金预算财政拨款支出表
A9: 附表3-8 | B9: 部门预算国有资本经营预算财政拨款支出表
A10: 附表3-9 | B10: 部门预算财政拨款“三公”经费支出表

Sheet 附表3-1
A1: 附表3-1
A2: 部门预算收支总表
D3: 公开01表
D4: 单位：万元
A5: 收入 | C5: 支出
A6: 项 目 | B6: 预算数 | C6: 项 目 | D6: 预算数
A7: 一、财政拨款收入 | B7: 7290.83 | C7: 一、一般公共服务支出 | D7: 779.78
A8: 二、上级补助收入 | C8: 二、外交支出
A9: 三、事业收入 | C9: 三、国防支出
A10: 四、经营收入 | C10: 四、公共安全支出
A11: 五、附属单位上缴收入 | C11: 五、教育支出
A12: 六、其他收入 | C12: 六、科学技术支出 | D12: 1000.00
C13: 七、文化体育与传媒支出
C14: 八、社会保障和就业支出 | D14: 1760.44
C15: 九、医疗卫生与计划生育支出 | D15: 88.50
C16: 十、节能环保支出
C17: 十一、城乡社区支出 | D17: 3550.00
C18: 十二、农林水支出 | D18: 76.70
C19: 十三、交通运输支出
C20: 十四、资源勘探信息等支出
C21: 十五、商业服务业等支出
C22: 十六、金融支出
C23: 十七、援助其他地区支出
C24: 十八、国土海洋气象等支出
C25: 十九、住房保障支出 | D25: 35.41
C26: 二十、粮油物资储备支出
C27: 二十一、国债还本付息支出
C28: 二十二、其他支出
A29: 本年收入合计 | B29: 7290.83 | C29: 本年支出合计 | D29: =SUM(D7:D28) -> 7290.83
A30: 用事业基金弥补收支差额 | C30: 结余分配
A31: 年初结转和结余 | C31: 年末结转和结余
A32: 合计 | B32: 7290.83 | C32: 合计 | D32: 7290.83

Sheet 附表3-2
A1: 附表3-2
A2: 部门预算收入总表
I3: 公开02表
I4: 单位：万元
A5: 科目 | C5: 本年收入合计 | D5: 财政拨款收入 | E5: 上级补助收入 | F5: 事业收入 | G5: 经营收入 | H5: 附属单位上缴收入 | I5: 其他收入
A6: 功能分类科目编码 | B6: 科目名称
A8: 合计 | C8: 7290.83 | D8: 7290.83
A9: 2011001 | B9: 行政运行 | C9: 725.95 | D9: 725.95
A10: 2101101 | B10: 行政单位医疗 | C10: 47.33 | D10: 47.33
A11: 2210201 | B11: 住房公积金 | C11: 35.41 | D11: 35.41
A12: 2011002 | B12: 一般行政管理事务 | C12: 2 | D12: 2
A13: 2011006 | B13: 军队转业干部安置 | C13: =10+18 -> 28 | D13: =10+18 -> 28
A14: 2011008 | B14: 引进人才费用 | C14: 12 | D14: 12
A15: 2012699 | B15: 其他档案事务 | C15: 10 | D15: 10
A16: 2060404 | B16: 科技成果转化与扩散 | C16: 1000 | D16: 1000
A17: 2080110 | B17: 劳动关系和维权 | C17: 5 | D17: 5
A18: 2080599 | B18: 其他行政事业单位单位离退休支出 | C18: 12 | D18: 12
A19: 2080799 | B19: 其他就业补助支出 | C19: =350+30 -> 380 | D19: =350+30 -> 380
A20: 2080899 | B20: 其他优抚支出 | C20: =3+1.8+0.15+0.48 -> 5.43 | D20: =3+1.8+0.15+0.48 -> 5.43
A21: 2082602 | B21: 财政对城乡居民基本养老保险基金的补助 | C21: =256+870+138 -> 1264 | D21: =256+870+138 -> 1264
A22: 2089901 | B22: 其他社会保障和就业支出 | C22: =58.93+4+0.12+4.42+13.2+0.25+3.09+10 -> 94.01 | D22: =58.93+4+0.12+4.42+13.2+0.25+3.09+10 -> 94.01
A23: 2109901 | B23: 其他医疗卫生与计划生育支出 | C23: 43 | D23: 43
A24: 2120805 | B24: 补助被征地农民支出 | C24: =1500+450+600+1000 -> 3550 | D24: =1500+450+600+1000 -> 3550
A25: 2130705 | B25: 对村民委员会和村党支部的补助 | C25: 76.7 | D25: 76.7

Sheet 附表3-3
A1: 附表3-3
A2: 部门预算支出总表
H3: 公开03表
H4: 单位：万元
A5: 科目 | C5: 本年支出合计 | D5: 基本支出 | E5: 项目支出 | F5: 上缴上级支出 | G5: 经营支出 | H5: 对附属单位补助支出
A6: 功能分类科目编码 | B6: 科目名称
A8: 合计 | C8: 7290.83 | D8: 808.69 | E8: 6482.14
A9: 2011001 | B9: 行政运行 | C9: 725.95 | D9: 725.95
A10: 2101101 | B10: 行政单位医疗 | C10: 47.33 | D10: 47.33
A11: 2210201 | B11: 住房公积金 | C11: 35.41 | D11: 35.41
A12: 2011002 | B12: 一般行政管理事务 | C12: 2 | E12: 2
A13: 2011006 | B13: 军队转业干部安置 | C13: =10+18 -> 28 | E13: =10+18 -> 28
A14: 2011008 | B14: 引进人才费用 | C14: 12 | E14: 12
A15: 2012699 | B15: 其他档案事务 | C15: 10 | E15: 10
A16: 2060404 | B16: 科技成果转化与扩散 | C16: 1000 | E16: 1000
A17: 2080110 | B17: 劳动关系和维权 | C17: 5 | E17: 5
A18: 2080599 | B18: 其他行政事业单位单位离退休支出 | C18: 12 | E18: 12
A19: 2080799 | B19: 其他就业补助支出 | C19: =350+30 -> 380 | E19: =350+30 -> 380
A20: 2080899 | B20: 其他优抚支出 | C20: =3+1.8+0.15+0.48 -> 5.43 | E20: =3+1.8+0.15+0.48 -> 5.43
A21: 2082602 | B21: 财政对城乡居民基本养老保险基金的补助 | C21: =256+870+138 -> 1264 | E21: =256+870+138 -> 1264
A22: 2089901 | B22: 其他社会保障和就业支出 | C22: =58.93+4+0.12+4.42+13.2+0.25+3.09+10 -> 94.01 | E22: =58.93+4+0.12+4.42+13.2+0.25+3.09+10 -> 94.01
A23: 2109901 | B23: 其他医疗卫生与计划生育支出 | C23: 43 | E23: 43
A24: 2120805 | B24: 补助被征地农民支出 | C24: =1500+450+600+1000 -> 3550 | E24: =1500+450+600+1000 -> 3550
A25: 2130705 | B25: 对村民委员会和村党支部的补助 | C25: 76.7 | E25: 76.7

Sheet 附表3-4
A1: 附表3-4
A2: 部门预算财政拨款收支总表
G3: 公开04表
G4: 单位：万元
A5: 收入 | C5: 支出
A6: 项 目 | B6: 金额 | C6: 项 目 | D6: 合计 | E6: 一般公共预算财政拨款 | F6: 政府性基金预算财政拨款 | G6: 国有资本经营预算财政拨款
A7: 一、一般公共预算财政拨款 | B7: 3740.83 | C7: 一、一般公共服务支出 | D7: 779.78 | E7: 779.78
A8: 二、政府性基金预算财政拨款 | B8: 3550.00 | C8: 二、外交支出
A9: 三、国有资本经营预算财政拨款 | C9: 三、国防支出
C10: 四、公共安全支出
C11: 五、教育支出
C12: 六、科学技术支出 | D12: 1000.00 | E12: 1000.00
C13: 七、文化体育与传媒支出
C14: 八、社会保障和就业支出 | D14: 1760.44 | E14: 1760.44
C15: 九、医疗卫生与计划生育支出 | D15: 88.50 | E15: 88.50
C16: 十、节能环保支出
C17: 十一、城乡社区支出 | D17: 3550.00 | F17: 3550.00
C18: 十二、农林水支出 | D18: 76.70 | E18: 76.70
C19: 十三、交通运输支出
C20: 十四、资源勘探信息等支出
C21: 十五、商业服务业等支出
C22: 十六、金融支出
C23: 十七、援助其他地区支出
C24: 十八、国土海洋气象等支出
C25: 十九、住房保障支出 | D25: 35.41 | E25: 35.41
C26: 二十、粮油物资储备支出
C27: 二十一、国债还本付息支出
C28: 二十二、其他支出
A29: 本年收入合计 | B29: 7290.83 | C29: 本年支出合计 | D29: =SUM(D7:D28) -> 7290.83 | E29: =SUM(E7:E28) -> 3740.83 | F29: =SUM(F7:F28) -> 3550.00
A30: 年初财政拨款结转和结余 | C30: 年末结转和结余
A31: 合计 | B31: 7290.83 | C31: 合计 | D31: =SUM(D9:D30) -> 13801.88 | E31: =SUM(E9:E30) -> 6701.88 | F31: =SUM(F9:F30) -> 7100.00

Sheet 附表3-5
A1: 附表3-5
A2: 部门预算一般公共预算财政拨款支出表
E3: 公开05表
E4: 单位：万元
A5: 科目 | C5: 合计 | D5: 基本支出 | E5: 项目支出
A6: 功能分类科目编码 | B6: 科目名称
A9: 合计 | C9: 7290.83 | D9: 808.69 | E9: 6482.14
A10: 2011001 | B10: 行政运行 | C10: 725.95 | D10: 725.95
A11: 2101101 | B11: 行政单位医疗 | C11: 47.33 | D11: 47.33
A12: 2210201 | B12: 住房公积金 | C12: 35.41 | D12: 35.41
A13: 2011002 | B13: 一般行政管理事务 | C13: 2 | E13: 2
A14: 2011006 | B14: 军队转业干部安置 | C14: =10+18 -> 28 | E14: =10+18 -> 28
A15: 2011008 | B15: 引进人才费用 | C15: 12 | E15: 12
A16: 2012699 | B16: 其他档案事务 | C16: 10 | E16: 10
A17: 2060404 | B17: 科技成果转化与扩散 | C17: 1000 | E17: 1000
A18: 2080110 | B18: 劳动关系和维权 | C18: 5 | E18: 5
A19: 2080599 | B19: 其他行政事业单位单位离退休支出 | C19: 12 | E19: 12
A20: 2080799 | B20: 其他就业补助支出 | C20: =350+30 -> 380 | E20: =350+30 -> 380
A21: 2080899 | B21: 其他优抚支出 | C21: =3+1.8+0.15+0.48 -> 5.43 | E21: =3+1.8+0.15+0.48 -> 5.43
A22: 2082602 | B22: 财政对城乡居民基本养老保险基金的补助 | C22: =256+870+138 -> 1264 | E22: =256+870+138 -> 1264
A23: 2089901 | B23: 其他社会保障和就业支出 | C23: =58.93+4+0.12+4.42+13.2+0.25+3.09+10 -> 94.01 | E23: =58.93+4+0.12+4.42+13.2+0.25+3.09+10 -> 94.01
A24: 2109901 | B24: 其他医疗卫生与计划生育支出 | C24: 43 | E24: 43
A25: 2120805 | B25: 补助被征地农民支出 | C25: =1500+450+600+1000 -> 3550 | E25: =1500+450+600+1000 -> 3550
A26: 2130705 | B26: 对村民委员会和村党支部的补助 | C26: 76.7 | E26: 76.7

Sheet 附表3-6
A1: 附表3-6
A2: 部门预算一般公共预算财政拨款基本支出表
E3: 公开06表
E4: 单位：万元
A5: 科目 | C5: 基本支出
A6: 经济分类科目编码 | B6: 科目名称 | C6: 合计 | D6: 人员经费 | E6: 公用经费
A7: 合计 | C7: 808.69 | D7: 771 | E7: 37.69
A8: 人员经费 | B8: 一、工资福利支出 | C8: 711.15 | D8: 711.15
A9: 30101 | B9: 1、基本工资 | C9: 135.85 | D9: 135.85
B10: 2、津贴补贴 | C10: 113.09 | D10: 113.09
A11: 30102 | B11: （1）工作津贴 | C11: 12.26 | D11: 12.26
A12: 30102 | B12: （2）生活补贴 | C12: 18.33 | D12: 18.33
A13: 30102 | B13: （3）（特殊）岗位津贴（补贴） | C13: 2.38 | D13: 2.38
B14: （4）规范津贴补贴后仍继续保留的补贴 | C14: 0.03 | D14: 0.03
A15: 30102 | B15: 2）职工劳模荣誉津贴 | C15: 0.03 | D15: 0.03
A16: 30102 | B16: （5）上述项目之外的津贴补贴 | C16: 80.09 | D16: 80.09
A17: 30103 | B17: 3、年终一次性奖金 | C17: 2.96 | D17: 2.96
B18: 4、社会保障缴费 | C18: 133.28 | D18: 133.28
A19: 30104 | B19: （1）基本养老保险费 | C19: 82.41 | D19: 82.41
A20: 30104 | B20: （2）基本医疗保险费 | C20: 44.16 | D20: 44.16
A21: 30104 | B21: （3）大病医疗保险费 | C21: 0.6 | D21: 0.6
A22: 30104 | B22: （6）事业单位失业保险费 | C22: 3.54 | D22: 3.54
A23: 30104 | B23: （7）工伤保险费 | C23: 1.83 | D23: 1.83
A24: 30104 | B24: （8）生育保险 | C24: 0.74 | D24: 0.74
B25: 6、绩效工资 | C25: 125.52 | D25: 125.52
A26: 30107 | B26: （1）基础绩效工资 | C26: 83.16 | D26: 83.16
A27: 30107 | B27: （2）奖励绩效工资 | C27: 42.36 | D27: 42.36
B28: 7、其他工资福利支出 | C28: 200.45 | D28: 200.45
A29: 30199 | B29: （1）长期聘用人员和长期临时工工资 | C29: 197.55 | D29: 197.55
A30: 30199 | B30: （2）长期聘用人员和长期临时工社保缴费 | C30: 2.9 | D30: 2.9
B31: 二、对个人和家庭的补助 | C31: 59.85 | D31: 59.85
B32: 8、奖励金 | C32: 0.18 | D32: 0.18
A33: 30309 | B33: （1）独生子女父母奖励 | C33: 0.18 | D33: 0.18
A34: 30309 | B34: 9、住房公积金 | C34: 35.41 | D34: 35.41
B35: 11、其他对个人和家庭的补助支出 | C35: 24.26 | D35: 24.26
B36: （1）住宅取暖费 | C36: 24.26 | D36: 24.26
B37: 1）在职住宅取暖费 | C37: 24.26 | D37: 24.26
A38: 公用经费 | B38: 1、基础定额项目 | C38: 25.07 | E38: 25.07
A39: 30201 | B39: （1）办公费 | C39: 7.8 | E39: 7.8
A40: 30207 | B40: （4）邮电费 | C40: 5.7 | E40: 5.7
A41: 30211 | B41: （7）差旅费 | C41: 5.45 | E41: 5.45
A42: 30213 | B42: （8）维修（护）费 | C42: 0.5 | E42: 0.5
A43: 30215 | B43: （9）会议费 | C43: 0.6 | E43: 0.6
A44: 30231 | B44: （12）公务用车运行维护费 | C44: 4.5 | E44: 4.5
B45: （24）其他 | C45: 0.52 | E45: 0.52
B46: 2、按规定比例计提项目 | C46: 12.62 | E46: 12.62
A47: 30216 | B47: （1）培训费 | C47: 2.81 | E47: 2.81
A48: 30217 | B48: （2）公务接待费 | C48: 4.3 | E48: 4.3
A49: 30228 | B49: （3）工会经费 | C49: 5.51 | E49: 5.51

Sheet 附表3-7
A1: 附表3-7
A2: 部门预算政府性基金预算财政拨款支出表
E4: 单位：万元
A5: 科目 | C5: 合计 | D5: 基本支出 | E5: 项目支出
A6: 功能分类科目编码 | B6: 科目名称
A9: 合计 | C9: 3,550.00 | E9: =SUM(E10:E13) -> 3,550.00
A10: 2120805 | B10: 城乡居民医疗补助 | C10: 1500 | E10: 1500
A11: 2120805 | B11: 9村村民参加企业职工养老保险财政补贴 | C11: 450 | E11: 450
A12: 2120805 | B12: 城乡居民养老保险补助资金 | C12: 600 | E12: 600
A13: 2120805 | B13: 社会保障费 | C13: 1000 | E13: 1000

Sheet 附表3-8
A1: 附表3-8
A2: 部门预算国有资本经营预算财政拨款支出表
E4: 单位：万元
A5: 科目 | C5: 合计 | D5: 基本支出 | E5: 项目支出
A6: 功能分类科目编码 | B6: 科目名称
A9: 合计
A20: 此表无数据

Sheet 附表3-9
A1: 附表3-9
A2: 部门预算财政拨款“三公”经费支出表
E3: 公开07表
E4: 单位：万元
A5: 项目 | B5: 资金来源
B6: 合计 | C6: 一般公共预算财政拨款 | D6: 政府性基金财政拨款 | E6: 国有资本经营预算财政拨款
A7: 合计 | B7: 8.8 | C7: 8.8
A8: 一、因公出国（境）费
A9: 二、公务用车购置及运行费
A10: 其中：公务用车购置费
A11: 公务用车运行费 | B11: 4.5 | C11: 4.5
A12: 三、公务接待费 | B12: 4.3 | C12: 4.3
